fUST/lending_fUST_20240218
["ID","MTS","AMOUNT","RATE_DAILY","PERIOD"]
[314337488,1708195844059,-583.77,0.00031521,2]
[314337489,1708195844067,-513.06,0.00031521,2]
[314337490,1708195844077,-1416.10014716,0.00031538,2]
[314337491,1708195844086,-150.5,0.0003157,35]
[314337492,1708195844095,-1416.10014716,0.00031618,2]
[314337493,1708195844103,-777.0,0.0003168,2]
[314337494,1708195844112,-150.0,0.00031683,2]
[314337495,1708195844121,-153.34627261,0.00031687,7]
[314337496,1708195844130,-1388.56800047,0.00031717,3]
[314337497,1708195844139,-216.003138,0.00031718,2]
[314337498,1708195844148,-216.003138,0.00031718,2]
[314337499,1708195844157,-216.003138,0.00031718,2]
[314337500,1708195844166,-216.003138,0.00031718,2]
[314337501,1708195844175,-216.003138,0.00031718,2]
[314337502,1708195844184,-216.003138,0.00031718,2]
[314337503,1708195844193,-216.003138,0.00031718,2]
[314337504,1708195844202,-216.003138,0.00031718,2]
[314337505,1708195844211,-216.003138,0.00031718,2]
[314337506,1708195844221,-216.003138,0.00031718,2]
[314337507,1708195844230,-216.003138,0.00031718,2]
[314337508,1708195844239,-216.003138,0.00031718,2]
[314337509,1708195844248,-216.003138,0.00031718,2]
[314337510,1708195844257,-216.003138,0.00031718,2]
[314337511,1708195844267,-216.003138,0.00031718,2]
[314337512,1708195844276,-216.0031475,0.00031718,2]
[314337513,1708195844285,-467.218197,0.00031718,2]
[314337514,1708195844294,-467.218197,0.00031718,2]
[314337515,1708195844303,-467.218197,0.00031718,2]
[314337516,1708195844312,-467.218197,0.00031718,2]
[314337517,1708195844321,-467.218197,0.00031718,2]
[314337518,1708195844331,-467.218197,0.00031718,2]
[314337519,1708195844340,-467.218197,0.00031718,2]
[314337520,1708195844349,-151.0,0.00031718,2]
[314337521,1708195844358,-467.218197,0.00031718,2]
[314337522,1708195844367,-151.0,0.00031718,2]
[314337523,1708195844376,-151.0,0.00031718,2]
[314337524,1708195844385,-151.0,0.00031718,2]
[314337525,1708195844394,-467.218197,0.00031718,2]
[314337526,1708195844403,-178.52227,0.00031718,2]
[314337527,1708195844412,-467.218197,0.00031718,2]
[314337528,1708195844421,-467.218197,0.00031718,2]
[314337529,1708195844430,-467.218197,0.00031718,2]
[314337530,1708195844440,-467.218197,0.00031718,2]
[314337531,1708195844449,-467.218197,0.00031718,2]
[314337532,1708195844458,-467.218197,0.00031718,2]
[314337533,1708195844467,-467.218198,0.00031718,2]
[314337534,1708195844476,-151.0,0.00031718,2]
[314337535,1708195844485,-151.0,0.00031718,2]
[314337536,1708195844494,-1500.0,0.00031718,35]
[314337537,1708195844503,-1500.0,0.00031718,35]
[314337538,1708195844512,-925552.80727743,0.00031722,30]
[314337539,1708195844525,-15039.40022051,0.00031722,30]
[314337707,1708197038186,-155.0,0.00024596,2]
[314337709,1708197038196,-218.0282531,0.00024597,2]
[314337712,1708197038205,-559.14781881,0.00024599,2]
[314337713,1708197038215,-166.75633,0.00026227,2]
[314337715,1708197038226,-181.75919759,0.0002711,2]
[314337996,1708197046099,-1122.51571305,0.0002711,2]
[314337997,1708197046109,-210.20002189,0.00027117,3]
[314337999,1708197046119,-200.44471279,0.00027117,3]
[314338007,1708198171103,-404.02792007,0.00024577,2]
[314338008,1708198171124,-155.0,0.00024578,2]
[314338009,1708198171143,-286.39335264,0.00024578,2]
[314338010,1708198171162,-218.0282531,0.00024579,2]
[314338011,1708198171186,-1760.49951937,0.00024622,2]
[314338012,1708198171208,-3530.09043216,0.00024622,2]
[314338013,1708198171227,-405.12262995,0.00025017,2]
[314338014,1708198171246,-166.666666,0.00025688,2]
[314338015,1708198171267,-311.1511079,0.00026452,2]
[314338016,1708198171286,-1648.1960303,0.00026692,2]
[314338017,1708198171305,-150.0,0.000271,2]
[314338018,1708198171327,-55.62473423,0.00027117,3]
[314338063,1708198232313,-309.65937468,0.00027117,3]
[314338065,1708198232325,-363.54728126,0.00027117,3]
[314338067,1708198232335,-638.96384119,0.00027117,3]
[314338069,1708198232344,-153.0,0.00027945,2]
[314338071,1708198232353,-155.0,0.00028,2]
[314338073,1708198232363,-500.0,0.00028504,2]
[314338075,1708198232372,-500.0,0.00028504,2]
[314338077,1708198232381,-747.46,0.00028504,2]
[314338079,1708198232391,-500.0,0.00028504,2]
[314338081,1708198232400,-500.0,0.00028504,2]
[314338083,1708198232409,-500.0,0.00028504,2]
[314338085,1708198232418,-234.66231295,0.00028504,2]
[314338087,1708198232428,-500.0,0.00028504,2]
[314338089,1708198232439,-500.0,0.00028504,2]
[314338091,1708198232448,-3648.5,0.00028504,2]
[314338093,1708198232457,-500.0,0.00028504,2]
[314338095,1708198232467,-500.0,0.00028504,2]
[314338097,1708198232477,-579.0,0.00028504,2]
[314338099,1708198232486,-2263.02,0.00028504,2]
[314338101,1708198232496,-500.0,0.00028504,2]
[314338103,1708198232505,-500.0,0.00028504,2]
[314338104,1708198232515,-500.0,0.00028504,2]
[314338105,1708198232524,-2971.26,0.00028504,2]
[314338106,1708198232534,-500.0,0.00028504,2]
[314338107,1708198232545,-500.0,0.00028504,2]
[314338108,1708198232555,-500.0,0.00028504,2]
[314338109,1708198232564,-500.0,0.00028504,2]
[314338110,1708198232573,-500.0,0.00028504,2]
[314338111,1708198232584,-500.0,0.00028504,2]
[314338112,1708198232593,-500.0,0.00028504,2]
[314338113,1708198232601,-2533.29,0.00028504,2]
[314338114,1708198232610,-500.0,0.00028505,2]
[314338115,1708198232621,-500.0,0.00028505,2]
[314338116,1708198232630,-500.0,0.00028505,2]
[314338117,1708198232640,-500.0,0.00028505,2]
[314338118,1708198232649,-500.0,0.00028505,2]
[314338119,1708198232659,-500.0,0.00028505,2]
[314338120,1708198232668,-500.0,0.00028505,2]
[314338121,1708198232677,-500.0,0.00028505,2]
[314338122,1708198232686,-1800.19,0.00028505,2]
[314338123,1708198232695,-500.0,0.00028505,2]
[314338124,1708198232705,-2020.6,0.00028505,2]
[314338125,1708198232714,-532.11,0.00028505,2]
[314338126,1708198232723,-714.43,0.00028505,2]
[314338127,1708198232733,-500.0,0.00028505,2]
[314338128,1708198232742,-500.0,0.00028505,2]
[314338129,1708198232751,-500.0,0.00028505,2]
[314338130,1708198232761,-500.0,0.00028505,2]
[314338131,1708198232770,-2716.55,0.00028505,2]
[314338132,1708198232779,-2122.8,0.00028769,3]
[314338133,1708198232788,-500.0,0.00028778,2]
[314338134,1708198232797,-747.46,0.00028778,2]
[314338135,1708198232806,-500.0,0.00028778,2]
[314338136,1708198232815,-500.0,0.00028778,2]
[314338137,1708198232824,-500.0,0.00028778,2]
[314338138,1708198232834,-500.0,0.00028778,2]
[314338139,1708198232843,-500.0,0.00028778,2]
[314338141,1708198232852,-3648.5,0.00028778,2]
[314338143,1708198232861,-500.0,0.00028778,2]
[314338144,1708198232870,-579.0,0.00028778,2]
[314338145,1708198232879,-2263.02,0.00028778,2]
[314338146,1708198232889,-498.32057746,0.00028778,2]
[314338270,1708198238337,-2074.44,0.00028505,2]
[314338272,1708198238347,-1.67942254,0.00028778,2]
[314338274,1708198238356,-500.0,0.00028778,2]
[314338276,1708198238365,-500.0,0.00028778,2]
[314338278,1708198238375,-2971.26,0.00028778,2]
[314338280,1708198238384,-500.0,0.00028778,2]
[314338282,1708198238393,-500.0,0.00028778,2]
[314338284,1708198238403,-500.0,0.00028778,2]
[314338286,1708198238413,-500.0,0.00028778,2]
[314338288,1708198238422,-500.0,0.00028778,2]
[314338290,1708198238432,-500.0,0.00028778,2]
[314338292,1708198238441,-424.4656152,0.00028778,2]
[314338294,1708198238451,-2533.29,0.00028778,2]
[314338296,1708198238460,-500.0,0.00028779,2]
[314338298,1708198238469,-500.0,0.00028779,2]
[314338300,1708198238478,-500.0,0.00028779,2]
[314338303,1708198238488,-500.0,0.00028779,2]
[314338305,1708198238497,-1800.19,0.00028779,2]
[314338307,1708198238506,-2020.6,0.00028779,2]
[314338309,1708198238516,-532.11,0.00028779,2]
[314338311,1708198238526,-714.43,0.00028779,2]
[314338313,1708198238535,-500.0,0.00028779,2]
[314338315,1708198238547,-500.0,0.00028779,2]
[314338317,1708198238556,-500.0,0.00028779,2]
[314338319,1708198238565,-500.0,0.00028779,2]
[314338321,1708198238574,-2716.55,0.00028779,2]
[314338323,1708198238583,-2074.44,0.00028779,2]
[314338325,1708198238592,-1974.32885604,0.00029,7]
[314338327,1708198238602,-422.16862063,0.00029,2]
[314338329,1708198238611,-500.0,0.00029052,2]
[314338331,1708198238622,-747.46,0.00029052,2]
[314338334,1708198238631,-500.0,0.00029052,2]
[314338336,1708198238640,-500.0,0.00029052,2]
[314338338,1708198238649,-500.0,0.00029052,2]
[314338340,1708198238658,-3648.5,0.00029052,2]
[314338342,1708198238667,-579.0,0.00029052,2]
[314338344,1708198238676,-500.0,0.00029052,2]
[314338346,1708198238685,-500.0,0.00029052,2]
[314338347,1708198238695,-500.0,0.00029052,2]
[314338349,1708198238704,-2971.26,0.00029052,2]
[314338351,1708198238714,-500.0,0.00029052,2]
[314338354,1708198238723,-500.0,0.00029052,2]
[314338356,1708198238733,-500.0,0.00029052,2]
[314338358,1708198238742,-500.0,0.00029052,2]
[314338360,1708198238751,-500.0,0.00029052,2]
[314338362,1708198238761,-500.0,0.00029052,2]
[314338364,1708198238770,-2533.29,0.00029052,2]
[314338365,1708198238779,-500.0,0.00029053,2]
[314338367,1708198238788,-500.0,0.00029053,2]
[314338369,1708198238797,-500.0,0.00029053,2]
[314338371,1708198238805,-1800.19,0.00029053,2]
[314338373,1708198238815,-2020.6,0.00029053,2]
[314338375,1708198238824,-532.11,0.00029053,2]
[314338377,1708198238833,-714.43,0.00029053,2]
[314338379,1708198238842,-500.0,0.00029053,2]
[314338381,1708198238852,-500.0,0.00029053,2]
[314338383,1708198238861,-500.0,0.00029053,2]
[314338386,1708198238871,-500.0,0.00029053,2]
[314338388,1708198238880,-2716.55,0.00029053,2]
[314338390,1708198238889,-2074.44,0.00029053,2]
[314338392,1708198238898,-1786.56049038,0.000293,2]
[314338394,1708198238907,-500.0,0.00029326,2]
[314338395,1708198238917,-747.46,0.00029326,2]
[314338397,1708198238926,-500.0,0.00029326,2]
[314338400,1708198238935,-500.0,0.00029326,2]
[314338402,1708198238944,-3648.5,0.00029326,2]
[314338403,1708198238953,-579.0,0.00029326,2]
[314338405,1708198238963,-500.0,0.00029326,2]
[314338407,1708198238972,-500.0,0.00029326,2]
[314338409,1708198238981,-500.0,0.00029326,2]
[314338411,1708198238990,-2971.26,0.00029326,2]
[314338413,1708198238999,-500.0,0.00029326,2]
[314338415,1708198239008,-500.0,0.00029326,2]
[314338417,1708198239017,-183.11041211,0.00029326,2]
[314338419,1708198239026,-405.53960382,0.00029326,2]
[314338421,1708198239036,-500.0,0.00029326,2]
[314338423,1708198239045,-500.0,0.00029326,2]
[314338426,1708198239055,-2533.29,0.00029326,2]
[314338428,1708198239063,-500.0,0.00029326,2]
[314338430,1708198239072,-345.22990015,0.00029326,2]
[314338432,1708198239081,-500.0,0.00029326,2]
[314338434,1708198239091,-500.0,0.00029326,2]
[314338436,1708198239100,-464.48277072,0.00029326,2]
[314338438,1708198239109,-500.0,0.00029327,2]
[314338440,1708198239118,-500.0,0.00029327,2]
[314338442,1708198239129,-1800.19,0.00029327,2]
[314338444,1708198239138,-2020.6,0.00029327,2]
[314338446,1708198239148,-532.11,0.00029327,2]
[314338448,1708198239157,-714.43,0.00029327,2]
[314338450,1708198239167,-500.0,0.00029327,2]
[314338452,1708198239176,-500.0,0.00029327,2]
[314338453,1708198239186,-500.0,0.00029327,2]
[314338455,1708198239195,-500.0,0.00029327,2]
[314338458,1708198239204,-2716.55,0.00029327,2]
[314338460,1708198239214,-2074.44,0.00029327,2]
[314338462,1708198239223,-500.0,0.000296,2]
[314338463,1708198239232,-747.46,0.000296,2]
[314338465,1708198239241,-500.0,0.000296,2]
[314338468,1708198239251,-500.0,0.000296,2]
[314338470,1708198239260,-3648.5,0.000296,2]
[314338472,1708198239269,-579.0,0.000296,2]
[314338473,1708198239278,-500.0,0.000296,2]
[314338476,1708198239287,-500.0,0.000296,2]
[314338478,1708198239297,-500.0,0.000296,2]
[314338480,1708198239306,-2971.26,0.000296,2]
[314338482,1708198239315,-500.0,0.000296,2]
[314338483,1708198239324,-500.0,0.000296,2]
[314338485,1708198239333,-500.0,0.000296,2]
[314338488,1708198239343,-500.0,0.000296,2]
[314338489,1708198239353,-2533.29,0.000296,2]
[314338492,1708198239362,-500.0,0.00029601,2]
[314338494,1708198239371,-500.0,0.00029601,2]
[314338496,1708198239381,-1800.19,0.00029601,2]
[314338498,1708198239390,-2020.6,0.00029601,2]
[314338500,1708198239400,-532.11,0.00029601,2]
[314338502,1708198239408,-714.43,0.00029601,2]
[314338504,1708198239417,-500.0,0.00029601,2]
[314338506,1708198239426,-500.0,0.00029601,2]
[314338508,1708198239436,-500.0,0.00029601,2]
[314338510,1708198239446,-500.0,0.00029601,2]
[314338512,1708198239454,-2716.55,0.00029601,2]
[314338514,1708198239463,-2074.44,0.00029601,2]
[314338515,1708198239473,-747.46,0.00029874,2]
[314338517,1708198239482,-500.0,0.00029874,2]
[314338519,1708198239491,-500.0,0.00029874,2]
[314338522,1708198239501,-3648.5,0.00029874,2]
[314338524,1708198239510,-579.0,0.00029874,2]
[314338525,1708198239519,-500.0,0.00029874,2]
[314338527,1708198239528,-500.0,0.00029874,2]
[314338529,1708198239538,-500.0,0.00029874,2]
[314338531,1708198239550,-2971.26,0.00029874,2]
[314338534,1708198239560,-515.91708487,0.00029874,2]
[314338536,1708198239569,-500.0,0.00029874,2]
[314338537,1708198239578,-500.0,0.00029874,2]
[314338539,1708198239588,-500.0,0.00029874,2]
[314338541,1708198239597,-500.0,0.00029875,2]
[314338544,1708198239607,-500.0,0.00029875,2]
[314338545,1708198239616,-1800.19,0.00029875,2]
[314338548,1708198239627,-2020.6,0.00029875,2]
[314338550,1708198239636,-532.11,0.00029875,2]
[314338552,1708198239645,-714.43,0.00029875,2]
[314338554,1708198239654,-500.0,0.00029875,2]
[314338556,1708198239664,-500.0,0.00029875,2]
[314338558,1708198239673,-500.0,0.00029875,2]
[314338560,1708198239682,-500.0,0.00029875,2]
[314338561,1708198239690,-2716.55,0.00029875,2]
[314338564,1708198239700,-2074.44,0.00029875,2]
[314338566,1708198239710,-152.1625319,0.000299,2]
[314338568,1708198239719,-58211.57842157,0.000299,2]
[314338570,1708198239729,-858.67903961,0.0002999,7]
[314338572,1708198239738,-252.14931658,0.0002999,5]
[314338574,1708198239747,-1145.25558677,0.0002999,5]
[314338576,1708198239756,-282.14287431,0.0002999,7]
[314338578,1708198239765,-554.47935255,0.0003,2]
[314338580,1708198239774,-223.0,0.0003,2]
[314338582,1708198239785,-405.12262995,0.00030017,2]
[314338584,1708198239794,-747.46,0.00030148,2]
[314338586,1708198239803,-500.0,0.00030148,2]
[314338588,1708198239812,-500.0,0.00030148,2]
[314338590,1708198239821,-3648.5,0.00030148,2]
[314338592,1708198239831,-579.0,0.00030148,2]
[314338594,1708198239839,-500.0,0.00030148,2]
[314338596,1708198239848,-500.0,0.00030148,2]
[314338598,1708198239857,-500.0,0.00030148,2]
[314338600,1708198239866,-2971.26,0.00030148,2]
[314338601,1708198239875,-500.0,0.00030148,2]
[314338612,1708198239961,-500.0,0.00030148,2]
[314338614,1708198239971,-500.0,0.00030148,2]
[314338616,1708198239980,-500.0,0.00030149,2]
[314338618,1708198239989,-500.0,0.00030149,2]
[314338620,1708198239999,-1800.19,0.00030149,2]
[314338622,1708198240008,-2020.6,0.00030149,2]
[314338624,1708198240017,-532.11,0.00030149,2]
[314338626,1708198240026,-714.43,0.00030149,2]
[314338628,1708198240035,-500.0,0.00030149,2]
[314338630,1708198240044,-500.0,0.00030149,2]
[314338632,1708198240053,-500.0,0.00030149,2]
[314338634,1708198240062,-500.0,0.00030149,2]
[314338636,1708198240071,-2716.55,0.00030149,2]
[314338638,1708198240080,-2074.44,0.00030149,2]
[314338640,1708198240089,-747.46,0.00030422,2]
[314338642,1708198240098,-500.0,0.00030422,2]
[314338644,1708198240107,-500.0,0.00030422,2]
[314338646,1708198240117,-3648.5,0.00030422,2]
[314338648,1708198240126,-579.0,0.00030422,2]
[314338650,1708198240136,-500.0,0.00030422,2]
[314338652,1708198240144,-500.0,0.00030422,2]
[314338654,1708198240154,-500.0,0.00030422,2]
[314338655,1708198240163,-2971.26,0.00030422,2]
[314338656,1708198240172,-500.0,0.00030422,2]
[314338657,1708198240181,-500.0,0.00030422,2]
[314338658,1708198240190,-500.0,0.00030422,2]
[314338659,1708198240200,-500.0,0.00030423,2]
[314338660,1708198240209,-500.0,0.00030423,2]
[314338661,1708198240218,-1800.19,0.00030423,2]
[314338662,1708198240227,-2020.6,0.00030423,2]
[314338663,1708198240237,-532.11,0.00030423,2]
[314338664,1708198240246,-714.43,0.00030423,2]
[314338665,1708198240256,-500.0,0.00030423,2]
[314338666,1708198240265,-500.0,0.00030423,2]
[314338667,1708198240275,-500.0,0.00030423,2]
[314338668,1708198240284,-500.0,0.00030423,2]
[314338669,1708198240293,-2716.55,0.00030423,2]
[314338670,1708198240303,-2074.44,0.00030423,2]
[314338671,1708198240312,-300.0,0.00030653,2]
[314338672,1708198240321,-747.46,0.00030696,2]
[314338673,1708198240331,-500.0,0.00030696,2]
[314338675,1708198240341,-500.0,0.00030696,2]
[314338677,1708198240350,-3648.5,0.00030696,2]
[314338679,1708198240359,-579.0,0.00030696,2]
[314338681,1708198240368,-554.138867,0.00030696,2]
[314338683,1708198240378,-500.0,0.00030696,2]
[314338685,1708198240387,-500.0,0.00030696,2]
[314338687,1708198240396,-2971.26,0.00030696,2]
[314338689,1708198240405,-500.0,0.00030696,2]
[314338691,1708198240415,-500.0,0.00030696,2]
[314338694,1708198240423,-500.0,0.00030696,2]
[314338696,1708198240434,-500.0,0.00030697,2]
[314338699,1708198240444,-302.66926389,0.00030697,2]
[314338702,1708198240453,-1800.19,0.00030697,2]
[314338704,1708198240463,-2020.6,0.00030697,2]
[314338706,1708198240472,-532.11,0.00030697,2]
[314338708,1708198240481,-714.43,0.00030697,2]
[314338710,1708198240490,-500.0,0.00030697,2]
[314338712,1708198240499,-500.0,0.00030697,2]
[314338714,1708198240508,-500.0,0.00030697,2]
[314338716,1708198240517,-500.0,0.00030697,2]
[314338718,1708198240526,-2716.55,0.00030697,2]
[314338720,1708198240535,-2074.44,0.00030697,2]
[314338722,1708198240547,-155.0,0.00030708,2]
[314338724,1708198240556,-300.0,0.00030809,2]
[314338726,1708198240566,-184.6217684,0.00030959,2]
[314338728,1708198240575,-391.278602,0.00030964,2]
[314338730,1708198240585,-747.46,0.0003097,2]
[314338732,1708198240594,-500.0,0.0003097,2]
[314338734,1708198240604,-500.0,0.0003097,2]
[314338736,1708198240613,-3648.5,0.0003097,2]
[314338738,1708198240623,-579.0,0.0003097,2]
[314338740,1708198240633,-503.92397102,0.0003097,2]
[314338742,1708198240643,-500.0,0.0003097,2]
[314338744,1708198240652,-2971.26,0.0003097,2]
[314338746,1708198240661,-500.0,0.0003097,2]
[314338748,1708198240670,-500.0,0.0003097,2]
[314338750,1708198240679,-500.0,0.0003097,2]
[314338752,1708198240688,-547.57647805,0.00030971,2]
[314338754,1708198240697,-1800.19,0.00030971,2]
[314338756,1708198240705,-2020.6,0.00030971,2]
[314338758,1708198240715,-532.11,0.00030971,2]
[314338760,1708198240724,-714.43,0.00030971,2]
[314338762,1708198240733,-500.0,0.00030971,2]
[314338764,1708198240742,-500.0,0.00030971,2]
[314338766,1708198240751,-500.0,0.00030971,2]
[314338768,1708198240760,-500.0,0.00030971,2]
[314338770,1708198240769,-2716.55,0.00030971,2]
[314338772,1708198240778,-2074.44,0.00030971,2]
[314338774,1708198240787,-155.0,0.00030997,4]
[314338776,1708198240797,-175.12005203,0.00030997,4]
[314338778,1708198240806,-581.21143425,0.00030997,4]
[314338780,1708198240815,-326.91750851,0.00030998,4]
[314338782,1708198240824,-150.0,0.00030998,2]
[314338784,1708198240833,-384.7895333,0.00030998,4]
[314338786,1708198240843,-7967.49,0.00030999,2]
[314338788,1708198240852,-7967.49,0.00030999,2]
[314338790,1708198240861,-7967.49,0.00030999,2]
[314338792,1708198240871,-7967.49,0.00030999,2]
[314338794,1708198240879,-7967.49,0.00030999,2]
[314338796,1708198240888,-7967.49,0.00030999,2]
[314338798,1708198240897,-7967.49,0.00030999,2]
[314338800,1708198240909,-7967.49,0.00030999,2]
[314338802,1708198240918,-7967.49,0.00030999,2]
[314338804,1708198240927,-160.24275126,0.00031,3]
[314338806,1708198240937,-66612.96125179,0.00031,4]
[314338808,1708198240946,-20000.0,0.00031,2]
[314338810,1708198240956,-1949.7822642,0.00031,2]
[314338812,1708198240964,-2635.95513913,0.00031,7]
[314338814,1708198240973,-10000.0,0.00031,7]
[314338816,1708198240982,-14250.32002687,0.00031,7]
[314338818,1708198240991,-153.34627261,0.00031079,7]
[314338820,1708198241001,-283.22002948,0.00031145,2]
[314338822,1708198241010,-283.22002943,0.00031196,2]
[314338825,1708198241019,-777.0,0.000312,2]
[314338827,1708198241028,-153.34627261,0.0003122,7]
[314338828,1708198241037,-747.46,0.00031244,2]
[314338830,1708198241047,-500.0,0.00031244,2]
[314338832,1708198241056,-500.0,0.00031244,2]
[314338834,1708198241065,-2726.20524122,0.00031244,2]
[314338836,1708198241080,-922.29475878,0.00031244,2]
[314338838,1708198241089,-579.0,0.00031244,2]
[314338840,1708198241099,-244.97969191,0.00031244,2]
[314338843,1708198241111,-255.02030809,0.00031244,2]
[314338845,1708198241121,-973.26621191,0.00031244,2]
[314338847,1708198241132,-419.90951034,0.00031244,2]
[314338901,1708198241629,-2533.29,0.00029874,2]
[314338903,1708198241639,-2533.29,0.00030148,2]
[314338905,1708198241648,-2533.29,0.00030422,2]
[314338907,1708198241657,-2533.29,0.00030696,2]
[314338909,1708198241667,-1578.08427775,0.00031244,2]
[314338911,1708198241676,-500.0,0.00031244,2]
[314338913,1708198241686,-500.0,0.00031244,2]
[314338915,1708198241695,-404.81234894,0.00031244,2]
[314339387,1708198593590,785.3908131,0.00022,10]
[314339388,1708198593613,2021.0391869,0.00022,10]
[314339389,1708198690826,787.95338457,0.00029705,120]
[314339412,1708199432533,-154.98450155,0.00024738,2]
[314339413,1708199432545,-326.94939536,0.00024738,2]
[314339414,1708199432556,-286.39335264,0.00024739,2]
[314339415,1708199432567,-290.82588824,0.0002474,2]
[314339416,1708199432578,-1116.40826878,0.00024788,2]
[314339432,1708199438587,-410.33590393,0.00024788,2]
[314339434,1708199438596,-516.46208848,0.00024788,2]
[314339436,1708199438605,-1224.63718878,0.00024788,2]
[314339438,1708199438615,-18280.8498748,0.00026264,2]
[314339440,1708199438625,-1825.5614066,0.00026475,2]
[314339442,1708199438634,-686.27270174,0.00027,2]
[314339444,1708199438644,-154.98450155,0.00028503,2]
[314339446,1708199438653,-512.96,0.00028504,2]
[314339447,1708199438662,-500.0,0.00028504,2]
[314339449,1708199438671,-500.0,0.00028504,2]
[314339451,1708199438680,-500.0,0.00028504,2]
[314339453,1708199438690,-500.0,0.00028504,2]
[314339455,1708199438699,-500.0,0.00028504,2]
[314339457,1708199438709,-500.0,0.00028775,2]
[314339459,1708199438718,-1857.04,0.00028775,2]
[314339461,1708199438728,-500.0,0.00028775,2]
[314339463,1708199438737,-500.0,0.00028775,2]
[314339465,1708199438746,-500.0,0.00028776,2]
[314339467,1708199438756,-500.0,0.00028776,2]
[314339469,1708199438765,-500.0,0.00028776,2]
[314339471,1708199438774,-500.0,0.00028776,2]
[314339473,1708199438783,-500.0,0.00028776,2]
[314339475,1708199438792,-1716.64,0.00028776,2]
[314339477,1708199438801,-643.24,0.00028776,2]
[314339479,1708199438810,-500.0,0.00028776,2]
[314339481,1708199438819,-1306.02,0.00028776,2]
[314339483,1708199438829,-1465.92,0.00028776,2]
[314339485,1708199438839,-54.73662583,0.00028776,2]
[314340025,1708199445755,-0.092432,0.00028775,2]
[314340117,1708199657552,154.93802479,0.000176,2]
[314340198,1708200637722,-154.95351395,0.00024762,2]
[314340200,1708200637732,-286.39335264,0.00024763,2]
[314340202,1708200637741,-154.95351395,0.00024765,2]
[314340204,1708200637750,-44.0026461,0.00024788,2]
[314340206,1708200637763,-398.91525652,0.00024788,2]
[314340208,1708200637772,-270.0817533,0.00026676,2]
[314340210,1708200637781,-598.93150481,0.00027184,3]
[314340222,1708200637879,-237.00001442,0.00027184,3]
[314340224,1708200637894,-150.56151125,0.00027397,2]
[314340226,1708200637903,-1000.0,0.00028,2]
[314340228,1708200637912,-154.95351395,0.00028,2]
[314340230,1708200637922,-500.0,0.00028775,2]
[314340232,1708200637932,-367.0007484,0.00028775,2]
[314340234,1708200637943,-132.9992516,0.00028775,2]
[314340236,1708200637952,-500.0,0.00028775,2]
[314340238,1708200637962,-500.0,0.00028775,2]
[314340240,1708200637973,-500.0,0.00028775,2]
[314340243,1708200637983,-500.0,0.00028775,2]
[314340245,1708200637992,-500.0,0.00028775,2]
[314340246,1708200638001,-3694.42,0.00028775,2]
[314340248,1708200638011,-500.0,0.00028775,2]
[314340250,1708200638022,-579.0,0.00028775,2]
[314340252,1708200638031,-500.0,0.00028775,2]
[314340254,1708200638040,-500.0,0.00028775,2]
[314340256,1708200638050,-500.0,0.00028775,2]
[314340258,1708200638059,-500.0,0.00028775,2]
[314340260,1708200638068,-513.90277996,0.00028775,2]
[314340263,1708200638078,-507.91899621,0.00028775,2]